bitfinex-derivatives/quotes_SOLF0:USTF0_20220102
["timestamp","ask_amount","ask_price","bid_price","bid_amount"]
[1641090570845,27.66479,178.32,178.29,3.0]
[1641090571052,8.36,178.36,178.29,6.745]
[1641090571448,5.60569539,178.4,178.35,3.0]
[1641090571647,5.60569539,178.4,178.35,6.797]
[1641090571648,14.18569539,178.4,178.35,6.797]
[1641090571845,14.18569539,178.4,178.36,3.0]
[1641090572045,27.66479,178.38,178.36,3.0]
[1641090572544,27.66479,178.38,178.35,6.797]
[1641090573246,27.66479,178.38,178.37,3.0]
[1641090573748,27.66479,178.38,178.31,28.7254]
[1641090573946,27.66479,178.38,178.37,3.0]
[1641090574548,36.03981222,178.38,178.37,3.0]
[1641090574848,8.37502222,178.38,178.37,3.0]
[1641090575251,8.37502222,178.38,178.36,3.0]
[1641090576152,27.66479,178.37,178.36,3.0]
[1641090576554,36.03981222,178.37,178.36,3.0]
[1641090577054,27.66479,178.37,178.36,3.0]
[1641090577956,36.04134173,178.37,178.36,3.0]
[1641090578657,27.66479,178.37,178.36,3.0]
[1641090579959,27.66479,178.37,178.32,4.48607679]
[1641090580860,3.98202615,178.33,178.32,4.48607679]
[1641090581467,27.66479,178.37,178.32,4.48607679]
[1641090583464,31.60588163,178.37,178.32,4.48607679]
[1641090584066,31.60588163,178.37,178.3,29.571]
[1641090584268,27.66479,178.37,178.3,29.571]
[1641090585066,31.60588163,178.37,178.3,29.571]
[1641090585869,27.66479,178.37,178.3,29.571]
[1641090586267,3.1863286,178.36,178.3,29.571]
[1641090586770,31.60588163,178.37,178.3,29.571]
[1641090589275,27.66479,178.37,178.3,29.571]
[1641090589476,11.8248797,178.34,178.3,29.571]
[1641090589773,11.8248797,178.34,178.29,5.3844007]
[1641090590178,10.52449863,178.36,178.31,4.48640863]
[1641090590377,11.94800164,178.35,178.31,4.48640863]
[1641090590877,11.94800164,178.34,178.31,4.48640863]
[1641090591676,27.66479,178.35,178.31,4.48640863]
[1641090592184,14.09429091,178.34,178.31,4.48640863]
[1641090593182,11.94809912,178.34,178.31,4.48640863]
[1641090593378,27.66479,178.35,178.31,4.48640863]
[1641090593781,28.8328,178.37,178.31,4.48640863]
[1641090593979,14.09469831,178.34,178.31,4.48640863]
[1641090594379,14.09469831,178.34,178.31,8.97274586]
[1641090594579,11.94839191,178.34,178.31,8.97274586]
[1641090595481,2.1463064,178.34,178.31,8.97274586]
[1641090596480,27.66479,178.35,178.31,8.97274586]
[1641090597581,2.14609042,178.34,178.31,8.97274586]
[1641090597781,8.77809042,178.34,178.31,8.97274586]
[1641090598282,2.14612575,178.33,178.31,4.48633723]
[1641090598580,2.14612575,178.33,178.28,34.57013732]
[1641090599482,18.57979219,178.34,178.29,1.83650252]
[1641090600184,2.14617448,178.33,178.29,1.83650252]
[1641090601083,6.632,178.34,178.29,1.83650252]
[1641090601683,6.632,178.34,178.28,34.57013732]
[1641090601983,2.14087333,178.33,178.28,34.57013732]
[1641090602485,6.632,178.34,178.28,34.57013732]
[1641090603183,2.1405939,178.33,178.29,1.83177868]
[1641090603383,2.1405939,178.33,178.3,4.48660495]
[1641090604284,11.91721653,178.36,178.3,4.48660495]
[1641090604484,14.05769314,178.37,178.3,4.48660495]
[1641090606184,3.97235302,178.33,178.3,4.48660495]
[1641090606784,3.97246134,178.32,178.3,4.48660495]
[1641090606986,11.91721653,178.36,178.33,0.51357736]
[1641090607184,11.91721653,178.36,178.29,3.0]
[1641090607587,39.58200653,178.38,178.29,3.0]
[1641090607987,39.58200653,178.38,178.28,38.46748182]
[1641090608187,14.05767566,178.37,178.3,1.83179094]
[1641090609186,2.14045913,178.37,178.29,4.83179094]
[1641090609685,2.14045913,178.37,178.3,1.83179094]
[1641090611887,11.91721653,178.36,178.3,1.83179094]
[1641090612487,11.91721653,178.36,178.32,4.48616722]
[1641090612688,11.9471523,178.35,178.32,4.48616722]
[1641090613190,10.51763262,178.37,178.32,4.48616722]
[1641090613390,11.94716276,178.36,178.32,4.48616722]
[1641090615091,11.94716276,178.36,178.32,7.48616722]
[1641090615493,11.94716276,178.36,178.32,4.48616722]
[1641090617195,2.14045913,178.39,178.32,4.48616722]
[1641090617394,29.80524913,178.39,178.32,4.48616722]
[1641090617595,11.93124404,178.36,178.32,4.48616722]
[1641090618099,11.93124404,178.36,178.32,7.48616722]
[1641090618503,11.93124404,178.36,178.34,4.48557796]
[1641090618698,11.93124404,178.36,178.34,8.68157796]
[1641090619399,11.93124404,178.36,178.35,4.48553877]
[1641090619999,2.14045913,178.37,178.35,4.48553877]
[1641090620601,11.93124404,178.39,178.35,4.48553877]
[1641090621403,14.03815368,178.39,178.35,4.48553877]
[1641090622103,2.10690964,178.39,178.35,4.48553877]
[1641090622802,20.51124404,178.4,178.35,4.48553877]
[1641090623503,2.10668272,178.39,178.35,4.48553877]
[1641090624410,11.93124404,178.4,178.35,4.48553877]
[1641090624607,11.93124404,178.41,178.35,4.48553877]
[1641090625206,2.1063815,178.41,178.36,1.86980742]
[1641090625806,2.1063815,178.41,178.35,4.48553877]
[1641090626011,14.03762554,178.41,178.35,4.48553877]
[1641090627313,11.93124404,178.4,178.35,4.48553877]
[1641090629716,11.93124404,178.4,178.37,4.48488333]
[1641090630214,11.93124404,178.39,178.37,4.48488333]
[1641090631218,10.37453572,178.41,178.37,4.48488333]
[1641090631219,2.1063815,178.41,178.37,4.48488333]
[1641090631820,2.1063815,178.41,178.37,7.48488333]
[1641090632021,2.1063815,178.41,178.37,4.48488333]
[1641090632820,11.90715961,178.43,178.41,2.37755102]
[1641090633020,11.90715961,178.43,178.41,6.60655102]
[1641090633224,11.90715961,178.43,178.41,4.229]
[1641090633523,39.57194961,178.44,178.41,4.229]
[1641090634122,11.90715961,178.44,178.41,4.229]
[1641090634322,11.90715961,178.44,178.43,5.38025603]
[1641090635228,8.22,178.45,178.43,5.38025603]
[1641090635424,42.64265961,178.47,178.43,5.38025603]
[1641090635624,20.22715961,178.47,178.43,5.38025603]
[1641090636324,20.22715961,178.47,178.39,29.549]
[1641090636526,20.22715961,178.47,178.38,36.04644002]
[1641090636726,3.18458755,178.46,178.38,33.04644002]
[1641090637126,11.90715961,178.45,178.38,33.04644002]
[1641090637325,11.90715961,178.45,178.38,36.04644002]
[1641090638024,11.90715961,178.46,178.38,36.04644002]
[1641090638425,11.90715961,178.46,178.4,4.48412542]
[1641090638629,11.90715961,178.45,178.41,3.0]
[1641090638829,11.90715961,178.45,178.42,4.48363235]
[1641090639430,8.32,178.47,178.42,4.48363235]
[1641090640131,20.22715961,178.47,178.42,4.48363235]
[1641090640731,11.90715961,178.46,178.42,4.48363235]
[1641090643337,11.90715961,178.46,178.43,4.48335261]
[1641090645538,11.90715961,178.44,178.43,4.48335261]
[1641090646440,20.20604456,178.47,178.43,4.48335261]
[1641090649742,3.18449781,178.46,178.43,4.48335261]
[1641090651345,20.20604456,178.47,178.43,4.48335261]
[1641090651947,3.18468348,178.46,178.41,5.37]
[1641090652148,3.18468348,178.46,178.4,4.48417148]
[1641090652347,15.07072804,178.46,178.4,4.48417148]
[1641090652846,3.18468348,178.45,178.4,4.48417148]
[1641090653246,11.88604456,178.46,178.4,4.48417148]
[1641090653447,11.88604456,178.46,178.4,9.54017148]
[1641090653947,47.87083456,178.47,178.4,9.54017148]
[1641090654647,3.18467461,178.46,178.4,9.54017148]
[1641090656650,6.18467461,178.46,178.4,9.54017148]
[1641090657254,15.07071917,178.45,178.4,9.54017148]
[1641090657651,27.66479,178.42,178.4,9.54017148]
[1641090658550,11.88604456,178.43,178.4,9.54017148]
[1641090659150,11.88604456,178.45,178.4,9.54017148]
[1641090659651,27.66479,178.43,178.4,9.54017148]
[1641090660658,11.88604456,178.45,178.4,9.54017148]
[1641090661353,11.88604456,178.44,178.4,9.54017148]
[1641090661752,11.88604456,178.44,178.42,4.48364554]
[1641090662556,8.22503211,178.46,178.42,4.48364554]
[1641090663156,11.94107571,178.45,178.42,4.48364554]
[1641090663857,8.22503211,178.46,178.42,4.48364554]
[1641090664359,55.32958,178.47,178.42,4.48364554]
[1641090664558,11.92911716,178.46,178.42,4.48364554]
[1641090670870,11.92911716,178.46,178.44,4.48319265]
[1641090671272,11.92911716,178.45,178.44,4.48319265]
[1641090672872,11.92911716,178.45,178.44,8.96628658]
[1641090673073,11.92911716,178.45,178.44,4.48309393]
[1641090673572,14.01603257,178.46,178.44,4.48309393]
[1641090673773,14.01603257,178.46,178.44,10.65909393]
[1641090673974,11.92911716,178.45,178.44,10.65909393]
[1641090675474,14.01603257,178.46,178.44,10.65909393]
[1641090676076,11.92911716,178.45,178.44,10.65909393]
[1641090676878,10.31115193,178.48,178.44,10.65909393]
[1641090677477,11.93573153,178.46,178.44,10.65909393]
[1641090684690,18.59273153,178.46,178.41,5.38069713]
[1641090684993,27.66479,178.44,178.41,5.38069713]
[1641090685690,11.93573153,178.43,178.41,5.38069713]
[1641090686490,2.08691541,178.43,178.41,5.38069713]
[1641090687090,27.66479,178.46,178.41,5.38069713]
[1641090687292,11.9371843,178.44,178.41,5.38069713]
[1641090690193,14.02409971,178.44,178.41,5.38069713]
[1641090691193,2.08691541,178.44,178.41,5.38069713]
[1641090692595,3.97631465,178.42,178.41,5.38069713]
[1641090692896,11.9371843,178.46,178.43,0.50718781]
[1641090693096,11.9371843,178.46,178.41,5.38069713]
[1641090695797,10.26621852,178.47,178.41,5.38069713]
[1641090695798,11.9371843,178.45,178.41,5.38069713]
[1641090697498,11.9371843,178.44,178.41,5.38069713]
[1641090698399,11.9371843,178.44,178.42,4.48379838]
[1641090700003,11.9371843,178.45,178.42,4.48379838]
[1641090700806,11.9371843,178.45,178.42,11.26479838]
[1641090701605,11.9371843,178.44,178.42,11.26479838]
[1641090702307,11.9371843,178.44,178.42,6.781]
[1641090702705,11.9371843,178.44,178.38,4.48475961]
[1641090703106,11.9371843,178.43,178.38,4.48475961]
[1641090703710,11.9371843,178.45,178.39,1.92440264]
[1641090704910,11.9371843,178.45,178.41,4.48405297]
[1641090705110,11.9371843,178.46,178.41,4.48405297]
[1641090706516,3.18470871,178.45,178.36,17.28712094]
[1641090706724,14.9371843,178.43,178.36,5.38232374]
[1641090706917,11.9371843,178.43,178.36,5.38232374]
[1641090707316,5.60506698,178.42,178.36,5.38232374]
[1641090707617,11.9371843,178.41,178.36,5.38232374]
[1641090707817,27.66479,178.39,178.36,5.38232374]
[1641090709021,2.05037303,178.38,178.36,5.38232374]
[1641090710021,39.6019743,178.39,178.36,5.38232374]
[1641090710624,2.05417255,178.38,178.36,5.38232374]
[1641090711330,27.66479,178.39,178.36,5.38232374]
[1641090711523,27.66479,178.39,178.36,10.75632374]
[1641090711824,11.9371843,178.4,178.36,10.75632374]
[1641090712024,11.9371843,178.4,178.39,4.48446039]
[1641090712226,11.9371843,178.42,178.39,4.48446039]
[1641090712929,7.45338505,178.43,178.36,5.374]
[1641090713330,7.45338505,178.43,178.36,8.374]
[1641090713630,2.05329308,178.44,178.36,8.374]
[1641090713831,2.05329308,178.44,178.37,29.63177211]
[1641090714229,2.05329308,178.44,178.37,32.63177211]
[1641090714631,2.05329308,178.45,178.38,1.96698211]
[1641090717531,10.18137257,178.45,178.38,1.96698211]
[1641090718434,10.18137257,178.45,178.38,6.45155326]
[1641090720035,10.18137257,178.45,178.39,1.96698211]
[1641090720237,10.18137257,178.45,178.41,4.48383939]
[1641090720438,10.18137257,178.45,178.41,9.64483939]
[1641090720837,10.18137257,178.47,178.41,9.64483939]
[1641090721936,10.18137257,178.47,178.42,4.48377566]
[1641090727144,3.18458147,178.46,178.42,4.48377566]
[1641090728046,13.18137257,178.47,178.39,4.48434273]
[1641090728248,10.18137257,178.47,178.39,4.48434273]
[1641090728446,13.18137257,178.47,178.39,4.48434273]
[1641090728645,6.18456775,178.46,178.4,1.9674379]
[1641090728846,5.60412464,178.45,178.4,1.9674379]
[1641090729248,3.18456775,178.45,178.4,1.9674379]
[1641090729650,3.18456775,178.46,178.39,4.48450194]
[1641090729848,2.05329308,178.45,178.39,4.48450194]
[1641090730947,2.05329308,178.45,178.4,1.9674114]
[1641090731950,10.18137257,178.47,178.4,1.9674114]
[1641090732254,10.18137257,178.47,178.4,6.45159948]
[1641090732449,3.18468614,178.46,178.4,6.45159948]
[1641090733551,2.05329308,178.45,178.4,4.48418808]
[1641090738255,10.18137257,178.46,178.4,4.48418808]
[1641090738856,2.05329308,178.45,178.4,4.48418808]
[1641090740063,2.05329308,178.45,178.41,4.48389368]
[1641090740463,2.05329308,178.45,178.41,6.45133469]
[1641090741265,2.05329308,178.45,178.41,4.48389368]
[1641090744367,13.995002,178.45,178.41,4.48389368]
[1641090750471,11.94170892,178.45,178.41,4.48389368]
[1641090751375,13.995002,178.45,178.41,4.48389368]
[1641090752076,11.94170892,178.44,178.41,4.48389368]
[1641090753478,13.995002,178.44,178.41,4.48389368]
[1641090754480,11.94170892,178.44,178.41,4.48389368]
[1641090755381,13.995002,178.45,178.41,4.48389368]
[1641090760686,27.66479,178.44,178.41,4.48389368]
[1641090761089,2.05329308,178.43,178.41,4.48389368]
[1641090762693,2.05329308,178.43,178.42,4.48355663]
[1641090762890,2.05329308,178.43,178.42,11.03655663]
[1641090763490,11.94170892,178.45,178.42,13.00402246]
[1641090763693,13.995002,178.46,178.42,13.00402246]
[1641090764391,11.94170892,178.47,178.43,1.96746583]
[1641090767105,13.995002,178.47,178.43,1.96746583]
[1641090767698,16.995002,178.47,178.43,1.96746583]
[1641090767899,13.995002,178.47,178.42,4.48355663]
[1641090768098,16.995002,178.47,178.42,4.48355663]
[1641090768400,13.995002,178.47,178.42,4.48355663]
[1641090768599,2.05329308,178.46,178.43,1.96747478]
[1641090769201,13.995002,178.47,178.43,1.96747478]
[1641090770903,3.0,178.46,178.43,1.96747478]
[1641090771100,3.0,178.45,178.43,1.96747478]
[1641090771301,16.995002,178.47,178.43,1.96747478]
[1641090771502,13.995002,178.47,178.43,1.96747478]
[1641090771802,16.995002,178.47,178.42,4.48355663]
[1641090772002,2.05329308,178.45,178.42,4.48355663]
[1641090772600,11.94170892,178.46,178.42,4.48355663]
[1641090774603,13.995002,178.46,178.42,4.48355663]
[1641090775204,11.94170892,178.46,178.42,4.48355663]
[1641090776304,11.94170892,178.46,178.42,9.03955663]
[1641090777007,11.94170892,178.45,178.42,9.03955663]
[1641090777708,11.94114896,178.46,178.42,9.03955663]
[1641090778308,13.99444204,178.47,178.42,9.03955663]
[1641090779612,3.97487222,178.43,178.42,9.03955663]
[1641090780310,11.94114896,178.47,178.42,9.03955663]
[1641090781516,3.97489178,178.43,178.42,9.03955663]
[1641090782119,11.94114896,178.46,178.42,11.00701278]
[1641090783119,11.94114896,178.46,178.42,9.03955663]
[1641090783719,10.074941,178.48,178.42,9.03955663]
[1641090784322,3.18440674,178.47,178.42,9.03955663]
[1641090784621,11.94091918,178.46,178.42,9.03955663]
[1641090785020,11.94091918,178.46,178.43,4.48347211]
[1641090785519,2.05329308,178.46,178.43,4.48347211]
[1641090785922,8.02164792,178.48,178.43,4.48347211]
[1641090786122,11.94077335,178.46,178.43,4.48347211]
[1641090786926,10.03444005,178.48,178.43,4.48347211]
[1641090787129,11.9405101,178.47,178.43,4.48347211]
[1641090787728,11.9405101,178.46,178.43,4.48347211]
[1641090788627,10.03444005,178.48,178.43,4.48347211]
[1641090789229,11.94071529,178.47,178.43,4.48347211]
[1641090790228,11.94071529,178.46,178.43,4.48347211]
[1641090790731,10.03444005,178.48,178.43,4.48347211]
[1641090792329,11.94074287,178.46,178.43,4.48347211]
[1641090792929,11.9403781,178.47,178.43,4.48347211]
[1641090793529,10.03444005,178.48,178.43,4.48347211]
[1641090794430,11.94060594,178.47,178.43,4.48347211]
[1641090798836,13.95339807,178.47,178.43,4.48347211]
[1641090800740,27.66479,178.48,178.43,4.48347211]
[1641090800941,27.66479,178.48,178.43,10.18947211]
[1641090801241,13.95313578,178.47,178.43,10.18947211]
[1641090803842,27.66479,178.48,178.43,10.18947211]
[1641090804445,13.95315035,178.47,178.43,10.18947211]
[1641090806649,44.61794035,178.47,178.43,10.18947211]
[1641090806849,39.6052596,178.47,178.43,10.18947211]
[1641090807249,39.6052596,178.47,178.43,5.706]
[1641090807449,39.6052596,178.47,178.4,8.6299049]
[1641090807450,13.95315035,178.46,178.4,8.6299049]
[1641090808552,3.97699051,178.42,178.41,1.96575076]
[1641090809150,13.95315035,178.46,178.4,8.6299049]
[1641090809852,3.97529803,178.42,178.4,8.6299049]
[1641090810753,29.1414,178.45,178.4,8.6299049]
[1641090811456,3.97530164,178.42,178.4,8.6299049]
[1641090812355,29.1414,178.45,178.4,8.6299049]
[1641090813556,3.97538575,178.42,178.4,8.6299049]
[1641090814158,29.1414,178.45,178.4,8.6299049]
[1641090814656,3.0,178.44,178.4,8.6299049]
[1641090815359,3.97543869,178.42,178.4,8.6299049]
[1641090815859,3.97543869,178.42,178.38,5.38170077]
[1641090816265,3.0,178.43,178.38,5.38170077]
[1641090816464,2.01104383,178.42,178.38,5.38170077]
[1641090816863,29.67583383,178.42,178.38,5.38170077]
[1641090817161,27.66479,178.42,178.38,5.38170077]
[1641090817362,3.97609822,178.39,178.38,5.38170077]
[1641090817961,2.01125889,178.41,178.38,5.38170077]
[1641090818864,27.66479,178.42,178.38,5.38170077]
[1641090819063,3.97608574,178.39,178.38,5.38170077]
[1641090819465,2.01124944,178.41,178.38,5.38170077]
[1641090819965,27.66479,178.42,178.38,5.38170077]
[1641090820166,3.97607686,178.39,178.38,5.38170077]
[1641090820868,11.9404696,178.43,178.38,5.38170077]
[1641090820869,2.01123975,178.41,178.38,5.38170077]
[1641090821271,27.66479,178.41,178.38,5.38170077]
[1641090821471,3.97607666,178.39,178.38,5.38170077]
[1641090822974,2.0112438,178.4,178.38,5.38170077]
[1641090823572,27.66479,178.41,178.38,5.38170077]
[1641090823773,3.97596887,178.39,178.38,5.38170077]
[1641090824375,27.66479,178.41,178.38,5.38170077]
[1641090824376,2.01111606,178.4,178.38,7.34654444]
[1641090824574,2.01111606,178.4,178.38,1.96484367]
[1641090825076,27.66479,178.41,178.38,1.96484367]
[1641090825275,3.97596741,178.39,178.37,1.96484367]
[1641090825977,2.01111838,178.4,178.36,1.96484367]
[1641090826479,3.9759618,178.39,178.36,1.96484367]
[1641090827179,11.9404696,178.43,178.36,1.96484367]
[1641090827378,27.66479,178.41,178.36,1.96484367]
[1641090827878,3.97596023,178.39,178.36,1.96484367]
[1641090828078,3.97596023,178.39,178.37,4.48495932]
[1641090828881,27.66479,178.41,178.37,4.48495932]
[1641090829179,3.97593761,178.4,178.38,1.96484367]
[1641090829680,27.66479,178.41,178.38,1.96484367]
[1641090830479,3.97587398,178.4,178.38,1.96484367]
[1641090831181,31.6354909,178.41,178.37,4.48495932]
[1641090831980,27.66479,178.41,178.37,4.48495932]
[1641090832581,31.635538,178.41,178.37,4.48495932]
[1641090833281,27.66479,178.41,178.37,4.48495932]
[1641090833885,31.63548924,178.41,178.37,4.48495932]
[1641090834587,27.66479,178.41,178.37,4.48495932]
[1641090835188,31.635506,178.41,178.37,4.48495932]
[1641090835788,27.66479,178.41,178.37,4.48495932]
[1641090836591,31.63655049,178.41,178.35,6.278]
[1641090837091,27.66479,178.41,178.35,6.278]
[1641090837293,3.97217742,178.38,178.34,29.1951]
[1641090837891,27.66479,178.37,178.35,1.96277961]
[1641090838892,21.29463177,178.37,178.35,1.96277961]
[1641090839294,25.27601875,178.37,178.35,1.96277961]
[1641090840098,3.98138698,178.36,178.35,1.96277961]
[1641090840594,25.27601875,178.37,178.35,1.96277961]
[1641090841594,3.98138698,178.37,178.36,4.48507343]
[1641090841797,3.98138698,178.37,178.36,10.07507343]
[1641090842197,3.98138698,178.38,178.36,10.07507343]
[1641090842997,3.98138698,178.38,178.37,1.96277961]
[1641090843598,3.98138698,178.39,178.37,1.96277961]
[1641090844298,3.98138698,178.38,178.37,1.96277961]
[1641090848003,2.07094963,178.4,178.38,0.50326054]
[1641090848202,2.07094963,178.4,178.38,5.732]
[1641090848407,27.66479,178.42,178.39,1.96277961]
[1641090849103,2.07094963,178.41,178.36,1.96277961]
[1641090851810,11.9404696,178.42,178.36,1.96277961]
[1641090852411,27.66479,178.41,178.36,1.96277961]
[1641090853110,2.07094963,178.4,178.36,1.96277961]
[1641090853512,2.07094963,178.4,178.39,4.48437772]
[1641090855610,2.07094963,178.4,178.39,9.55837772]
[1641090856613,2.07094963,178.4,178.39,11.50431006]
[1641090857312,2.07094963,178.4,178.39,9.55837772]
[1641090860712,27.66479,178.41,178.39,9.55837772]
[1641090861714,2.07094963,178.4,178.39,9.55837772]
[1641090870536,25.25192288,178.41,178.39,10.45541757]
[1641090876034,25.25192288,178.41,178.4,4.48414355]
[1641090876237,11.9404696,178.42,178.4,4.48414355]
[1641090876836,11.9404696,178.44,178.4,4.48414355]
[1641090878437,40.6765696,178.45,178.4,4.48414355]
[1641090879941,11.9404696,178.44,178.4,4.48414355]
[1641090880541,11.9404696,178.44,178.42,4.48372609]
[1641090882144,40.6765696,178.45,178.42,4.48372609]
[1641090882643,11.9404696,178.45,178.42,4.48372609]
[1641090892758,11.9404696,178.45,178.44,4.483261]
[1641090893357,8.02977988,178.47,178.44,4.483261]
[1641090894160,3.1846086,178.46,178.44,4.483261]
[1641090901367,11.9367315,178.45,178.44,4.483261]
[1641090901970,15.1213401,178.45,178.44,4.483261]
[1641090902166,3.1846086,178.45,178.44,4.483261]
[1641090902772,3.1846086,178.46,178.44,4.483261]
[1641090903173,3.1846086,178.46,178.44,9.542261]
[1641090903372,8.60428167,178.45,178.35,21.80964022]
[1641090903573,5.60428167,178.45,178.35,4.48552904]
[1641090903774,3.0,178.39,178.31,35.72249508]
[1641090903972,3.0,178.37,178.31,31.89197908]
[1641090904372,3.0,178.36,178.27,31.89197908]
[1641090904873,27.66479,178.35,178.27,31.89197908]
[1641090905075,33.28879,178.35,178.27,19.37197908]
[1641090905274,33.28879,178.35,178.27,16.47197908]
[1641090905476,33.28879,178.35,178.27,19.47197908]
[1641090905673,58.31709,178.38,178.26,27.66479]
[1641090905876,8.02977988,178.37,178.26,32.53879]
[1641090906075,11.21614937,178.37,178.26,32.53879]
[1641090906475,11.21614937,178.37,178.27,3.0]
[1641090906675,8.02977988,178.37,178.27,3.0]
[1641090906874,8.02977988,178.37,178.27,10.60355822]
[1641090907076,8.02977988,178.37,178.28,28.6834]
[1641090908580,3.98088346,178.31,178.28,28.6834]
[1641090908777,3.98088346,178.31,178.26,32.53879]
[1641090909181,3.98082013,178.32,178.29,4.48699301]
[1641090909880,3.98087748,178.31,178.29,4.48699301]
[1641090910381,8.02977988,178.37,178.29,4.48699301]
[1641090911283,3.186434,178.36,178.28,31.4854]
[1641090911683,3.186434,178.36,178.28,35.97261722]
[1641090912081,3.186434,178.36,178.28,35.9726087]
[1641090912283,23.06228022,178.37,178.28,35.9726087]
[1641090912482,10.29432266,178.37,178.31,4.48654839]
[1641090912684,10.29432266,178.37,178.31,10.53954839]
[1641090913782,3.18632094,178.36,178.31,10.53954839]
[1641090914181,2.26454278,178.35,178.31,10.53954839]
[1641090915483,10.29432266,178.37,178.31,10.53954839]
[1641090916083,3.18639703,178.36,178.31,10.53954839]
[1641090917383,2.26454278,178.35,178.31,10.53954839]
[1641090919386,10.29432266,178.37,178.31,10.53954839]
[1641090921087,27.66479,178.35,178.31,10.53954839]
[1641090921889,10.29432266,178.34,178.31,10.53954839]
[1641090922993,10.29432266,178.34,178.31,6.053]
[1641090923191,37.95911266,178.37,178.3,4.48657792]
[1641090923692,10.29432266,178.36,178.3,4.48657792]
[1641090924592,3.0,178.35,178.3,4.48657792]
[1641090924791,3.0,178.35,178.28,31.4854]
[1641090924993,27.66479,178.31,178.27,5.38484369]
[1641090925692,10.29432266,178.3,178.27,5.38484369]
[1641090926594,31.24254278,178.33,178.27,5.38484369]
[1641090927095,10.29432266,178.32,178.27,5.38484369]
[1641090927496,10.29432266,178.32,178.24,31.5281]
[1641090928898,56.64279,178.33,178.24,31.5281]
[1641090929498,59.64279,178.33,178.24,38.0601]
[1641090929900,3.18708896,178.32,178.24,38.0601]
[1641090931704,2.26555169,178.31,178.24,38.0601]
[1641090932500,8.60868224,178.3,178.23,6.46350363]
[1641090932901,3.18748182,178.29,178.18,6.46504053]
[1641090933101,27.66479,178.25,178.19,29.519]
[1641090934906,3.98455454,178.2,178.19,29.519]
[1641090935109,3.98455454,178.2,178.18,6.46504053]
[1641090936106,3.98440375,178.21,178.18,6.46504053]
[1641090937208,3.98440375,178.21,178.2,4.4891383]
[1641090937410,27.66479,178.25,178.2,4.4891383]
[1641090937611,2.26628655,178.24,178.2,4.4891383]
[1641090938011,39.61817112,178.25,178.21,3.0]
[1641090938210,11.95338112,178.25,178.22,4.48858771]
[1641090938912,11.95338112,178.25,178.24,4.48816077]
[1641090939212,11.95338112,178.27,178.24,4.48816077]
[1641090939812,11.95338112,178.29,178.24,4.48816077]
[1641090940711,10.96438474,178.32,178.24,4.48816077]
[1641090940914,11.95051333,178.3,178.24,4.48816077]
[1641090941515,10.96438474,178.32,178.24,4.48816077]
[1641090942715,11.95046436,178.3,178.24,4.48816077]
[1641090943314,10.96438474,178.32,178.24,4.48816077]
[1641090943514,10.96438474,178.32,178.24,32.15295077]
[1641090944017,11.95045854,178.3,178.24,32.15295077]
[1641090945517,11.95045854,178.28,178.24,32.15295077]
[1641090946422,11.95117254,178.29,178.24,32.15295077]
[1641090947317,10.96438474,178.32,178.24,32.15295077]
[1641090947817,10.96438474,178.32,178.25,4.48783526]
[1641090948021,11.9512002,178.29,178.25,4.48783526]
[1641090948520,10.96438474,178.32,178.25,4.48783526]
[1641090948718,10.96438474,178.32,178.25,10.35883526]
[1641090949419,11.95117018,178.29,178.25,10.35883526]
[1641090950020,10.96438474,178.32,178.25,10.35883526]
[1641090950720,10.96438474,178.32,178.26,1.7182602]
[1641090950920,11.95115337,178.3,178.26,1.7182602]
[1641090953521,11.95115337,178.29,178.25,4.48783526]
[1641090955522,10.96438474,178.32,178.25,4.48783526]
[1641090955722,10.96438474,178.32,178.25,9.42483526]
[1641090956223,11.94731213,178.29,178.25,9.42483526]
[1641090958423,11.94731213,178.28,178.25,9.42483526]
[1641090959629,10.96438474,178.32,178.25,9.42483526]
[1641090960728,11.95126903,178.28,178.25,9.42483526]
[1641090961628,10.96438474,178.32,178.25,9.42483526]
[1641090962130,11.95130335,178.28,178.25,9.42483526]
[1641090962831,10.96438474,178.32,178.25,9.42483526]
[1641090963431,11.95128529,178.28,178.25,9.42483526]
[1641090963631,11.95128529,178.28,178.27,4.48747277]
[1641090964132,10.96438474,178.32,178.27,4.48747277]
[1641090965432,11.95129267,178.28,178.27,4.48747277]
[1641090966239,10.96438474,178.32,178.27,4.48747277]
[1641090966439,11.95116677,178.29,178.27,4.48747277]
[1641090967238,10.96438474,178.32,178.27,4.48747277]
[1641090968038,11.95136836,178.29,178.27,4.48747277]
[1641090969639,10.96438474,178.32,178.27,4.48747277]
[1641090970342,11.95104611,178.29,178.27,4.48747277]
[1641090970844,10.96438474,178.32,178.27,4.48747277]
[1641090971944,11.95083209,178.3,178.27,4.48747277]
[1641090973644,11.95083209,178.29,178.27,4.48747277]
[1641090974046,10.96438474,178.32,178.27,4.48747277]
[1641090975054,11.950643,178.29,178.27,4.48747277]
[1641090975548,11.93834646,178.3,178.27,4.48747277]